Cogmind - Beta 17.1 @@@ ROGUE MODE // 2026.09.01 @ 22:42:54 Player: LandRaider Result: Destroyed by Y-45 Defender with Beam Rifle Performance ------------- Evolutions (2) 1000 Regions Visited (6) 1200 Robots Destroyed (165) 825 Value Destroyed (5171) 5171 Prototype IDs (13) 260 Alien Tech Used (0) 0 Bonus (1521) 1521 TOTAL SCORE: 9977 Bonus ------- High Alert Combat Kills 152 Follower Combat Kills 169 Entered Garrisons 200 Used RIF Installer 1000 Cogmind --------- Core Integrity 0/550 Matter 207/300 Energy 210/290 System Corruption 1% Temperature Cool (63) Movement Walking (192) Ox1 Location -8/Storage Parts ------- > --- POWER (1) -------- Improved Deuterium Engine > --- PROPULSION (4) --- Aluminum Leg Aluminum Leg Titanium Leg Armored Leg > --- UTILITY (4) ------ High-capacity Storage Unit Machine Analyzer Improved Signal Interpreter Hardened Light Armor Plating > --- WEAPON (2) ------- Improved EM Pulse Cannon Improved EM Pulse Cannon > --- INVENTORY (20) --- Improved Deuterium Engine Armored Treads Cryofiber Web Improved Heat Sink Trap Scanner Advanced Visual Processing Unit Advanced Terrain Scanner Armor Integrity Analyzer Improved Reaction Control System Medium Armor Plating Hardened Light Armor Plating Relay Coupler [NC] (31) Relay Coupler [Duelist] (21) Precision Beam Rifle Assault Cannon Magnetic Acceleration Cannon Improved Grenade Launcher Improved Grenade Launcher Remote Datajack Heavy Hammer Peak State ------------ > --- POWER ------------ Heavy Ion Engine > --- PROPULSION ------- Carbon-fiber Leg Titanium Leg Titanium Leg Armored Leg > --- UTILITY ---------- High-capacity Storage Unit Machine Analyzer Improved Reaction Control System Medium Armor Plating > --- WEAPON ----------- Magnetic Acceleration Cannon Remote Datajack > --- INVENTORY -------- Light Deuterium Engine Cryofiber Web Improved Heat Sink Trap Scanner Advanced Visual Processing Unit Improved Sensor Array Improved Signal Interpreter Advanced Terrain Scanner Armor Integrity Analyzer Relay Coupler [NC] Relay Coupler [Duelist] Relay Coupler [Sentry] Precision Beam Rifle EM Pulse Cannon EM Pulse Cannon Plasma Cannon Assault Cannon Mini Grenade Launcher Missile Launcher Heavy Hammer [Rating: 43] Favorites ----------- Power Cooled Ion Engine Engine Cooled Ion Engine Power Core Nuclear Core Propulsion Light Treads Treads Light Treads Leg Titanium Leg Flight Unit Improved Flight Unit Utility Machine Analyzer Device Improved Heat Sink Storage Large Storage Unit Processor Machine Analyzer Hackware Relay Coupler [Sentry] Protection Light Armor Plating Weapon Advanced Beam Cannon Energy Gun Improved Medium Laser Energy Cannon Advanced Beam Cannon Ballistic Gun Light Assault Rifle Ballistic Cannon Magnetic Acceleration Cannon Launcher Improved Grenade Launcher Special Weapon Remote Datajack Impact Weapon Heavy Hammer Special Melee Weapon Datajack Build | -11 -10 -9 -8 -8 -8 -8 ------- Run | Yrd Mat Mat Mat Gar Mat Sto Slots Evolved 4 | . . 2 2 . . . Power . | . . . . . . . Propulsion 2 | . . 1 1 . . . Utility 2 | . . 1 1 . . . Weapon . | . . . . . . . Parts Attached 110 | 7 4 38 36 12 12 1 Power 13 | 1 . 5 4 1 2 . Engine 12 | 1 . 5 3 1 2 . Core 1 | . . . 1 . . . Reactor . | . . . . . . . Propulsion 39 | 2 2 15 14 3 3 . Treads 19 | 2 . 7 9 1 . . Leg 19 | . 2 7 5 2 3 . Wheel . | . . . . . . . Hover . | . . . . . . . Flight 1 | . . 1 . . . . Utility 26 | 2 1 6 10 5 2 . Device 14 | 1 . 3 7 2 1 . Storage 4 | 1 1 . 2 . . . Processor 2 | . . 1 . 1 . . Hackware 1 | . . . . 1 . . Protection 5 | . . 2 1 1 1 . Artifact . | . . . . . . . Weapon 32 | 2 1 12 8 3 5 1 Energy Gun 9 | . . 6 3 . . . Energy Cannon 8 | . . 2 2 . 3 1 Ballistic Gun 6 | 2 1 1 2 . . . Ballistic Cannon 2 | . . . 1 1 . . Launcher 2 | . . . . . 2 . Special Weapon 1 | . . . . 1 . . Impact Weapon 3 | . . 3 . . . . Slashing Weapon . | . . . . . . . Piercing Weapon . | . . . . . . . Special Melee Weapon 1 | . . . . 1 . . Unidentified Prototypes 6 | . . 2 4 . . . Parts Lost 34 | . 3 8 14 2 7 . Power 3 | . 1 . . 1 1 . Propulsion 15 | . 1 3 7 1 3 . Utility 6 | . . 2 3 . 1 . Weapon 10 | . 1 3 4 . 2 . Highest Loss Streak 3 | . 1 3 3 2 3 . To Critical Strikes . | . . . . . . . Average Backups 14 | 4 7 12 14 19 19 20 Power 1 | . 1 2 1 1 1 1 Propulsion 1 | 2 1 2 2 . . 1 Utility 5 | . 3 4 4 9 10 11 Weapon 4 | 1 2 3 5 7 7 6 Tool/Special . | . . . . . . . Unused Backups 28 | . 4 5 3 5 2 9 Power 4 | . . 3 . . . 1 Propulsion 2 | . 1 . . 1 . . Utility 14 | . 1 1 2 3 . 7 Weapon 8 | . 2 1 1 1 2 1 Tool/Special . | . . . . . . . Average Slot Usage (%) 95 | . 94 94 95 99 89 100 Engine 9 | . 13 10 7 8 8 9 Treads 13 | . 15 14 21 1 . . Leg 18 | . 12 17 12 34 28 36 Device 11 | . 14 9 13 10 2 . Storage 10 | . 14 11 9 9 9 9 Processor 7 | . . 5 9 9 18 18 Protection 3 | . . 4 2 5 4 9 Energy Gun 4 | . . 7 5 3 . . Energy Cannon 5 | . . 8 6 . 9 10 Ballistic Gun 5 | . 24 2 2 . . . Ballistic Cannon 2 | . . . 1 7 3 . Impact Weapon 1 | . . 1 . 4 . . Peak Build Rating 43 | 7 8 19 37 43 42 37 Average Rating 22 | 5 7 15 27 38 37 36 On Entrance 20 | . 7 7 18 37 41 36 Avg Prop Armor Cover (%) 8 | . . 6 13 8 11 . Naked Turns . | . . . . . . . Heaviest Build 70 | 13 29 40 56 70 69 68 Greatest Support 82 | 40 40 60 82 66 68 53 Greatest Overweight (x) 3 | 3 1 2 2 1 3 1 Average Overweight (x) . | 1 . . . . . 1 Largest Inventory Capacity 20 | 8 15 15 20 20 20 20 Average Capacity 15 | 7 10 15 15 20 20 20 Most Carried 20 | 7 9 15 20 20 20 20 Average Carried 14 | 4 7 12 14 19 19 20 Final Capacity 20 | 8 15 15 20 20 20 20 Final Carried 20 | 7 8 15 20 19 20 20 Class Distribution -------------------- 51% | Scavenger-Mutant 46% | Mutant Dominant Class ---------------- Mutant | -10/Materials Scavenger-Mutant | -9/Materials Scavenger-Mutant | -8/Materials Mutant | -8/Garrison Mutant | -8/Materials Mutant | -8/Storage Resources | -11 -10 -9 -8 -8 -8 -8 ----------- Run | Yrd Mat Mat Mat Gar Mat Sto Matter Collected 2727 | 350 230 602 893 369 283 . Remotely . | . . . . . . . Salvage Created 6033 | 269 665 2240 2144 311 404 . Parts 319 | 24 36 127 97 17 18 . Haulers Intercepted 13 | . 2 5 6 . . . Recyclers Shooed 5 | 2 1 1 1 . . . Parts Field Recycled . | . . . . . . . Retrieved Matter . | . . . . . . . Parts Self-Destructed . | . . . . . . . Prevented . | . . . . . . . Parts Restored . | . . . . . . . Kills | -11 -10 -9 -8 -8 -8 -8 ------- Run | Yrd Mat Mat Mat Gar Mat Sto Combat Hostiles Destroyed 116 | . 16 38 42 10 10 . Guns 53 | . 16 15 20 2 . . Cannons 52 | . . 22 20 7 3 . AOE 7 | . . . . . 7 . Classes Destroyed 16 | 3 5 4 1 1 2 . Worker 7 | 2 . 5 . . . . Builder 6 | . . 4 2 . . . Tunneler 9 | 8 . 1 . . . . Hauler 13 | . 2 5 6 . . . Recycler 5 | 1 1 3 . . . . Mechanic 2 | . . 1 1 . . . Operator 2 | . 1 . 1 . . . Watcher 5 | . 1 2 2 . . . Swarmer 32 | . 9 7 13 3 . . Grunt 50 | . 7 20 19 . 4 . Brawler 2 | . . 2 . . . . Sentry 23 | . . 9 9 4 1 . Specialist 4 | . . . . . 4 . Hunter 3 | . . . 1 2 . . Programmer 1 | . . . . 1 . . Heavy 1 | . . . . . 1 . Best Kill Streak 16 | 4 5 16 7 3 5 . Combat Bots Only 7 | . 5 5 7 3 5 . Max Kills in Single Turn 2 | 1 1 2 2 1 1 . Gunslinging 1 | . . . 1 . . . Exploded 1 | . . . . . 1 . Melee . | . . . . . . . Uniques/NPCs Destroyed . | . . . . . . . Combat | -11 -10 -9 -8 -8 -8 -8 -------- Run | Yrd Mat Mat Mat Gar Mat Sto Hostile Shots Fired 686 | . 97 189 263 39 97 1 Missed 173 | . 22 45 61 11 34 . Hits 513 | . 75 144 202 28 63 1 Melee 1 | . . 1 . . . . Projectile 512 | . 75 143 202 28 63 1 Critical Strikes 12 | . 1 2 4 1 4 . Damage Taken 6871 | . 820 1678 2643 409 1306 15 Core 1056 | . 160 334 365 8 174 15 Absorbed by Shields . | . . . . . . . Core Remaining (%) 50 | 100 36 16 . . . . Volleys Fired 514 | 40 101 135 163 42 32 1 Largest 2 | 2 2 2 2 2 2 2 Hottest 149 | 40 40 136 136 92 149 138 Shots Fired 919 | 80 188 254 300 56 39 2 Gun 581 | 80 188 148 155 10 . . Cannon 327 | . . 106 145 42 32 2 Launcher 7 | . . . . . 7 . Special 4 | . . . . 4 . . Kinetic 435 | 80 188 53 61 42 11 . Thermal 455 | . . 201 239 10 5 . Explosive 7 | . . . . . 7 . Electromagnetic 18 | . . . . . 16 2 Robot Hit Streak 14 | 9 10 11 11 14 14 4 Robot Miss Streak 5 | 4 5 4 5 2 1 . Penetration Max 1 | . . . 1 . . . Secondary Targets 4 | . 1 2 1 . . . Max Gunslinging Chain 1 | . 1 1 1 . . . Shots Hit Robots 571 | 59 112 155 192 32 19 2 Core Hits 234 | 19 42 68 76 12 17 . Critical Kills 6 | 1 . 3 2 . . . Critical Parts Destroyed 2 | . 1 . . 1 . . Critical Strikes 18 | 1 1 8 7 1 . . Burn 10 | . . 5 5 . . . Meltdown 4 | . . 3 1 . . . Destroy 2 | 1 1 . . . . . Smash 2 | . . . 1 1 . . Melee Attacks 62 | . . 12 10 40 . . Impact 55 | . . 12 10 33 . . Slashing . | . . . . . . . Piercing . | . . . . . . . Sneak Attacks 10 | . . 2 . 8 . . Combat Hostiles 1 | . . . . 1 . . Follow-up Attacks . | . . . . . . . Damage Inflicted 10439 | 501 925 2742 4470 631 1120 50 Guns 4673 | 501 925 1201 1927 119 . . Cannons 4767 | . . 1327 2513 458 419 50 Explosions 701 | . . . . . 701 . Melee 298 | . . 214 30 54 . . Ramming . | . . . . . . . Kinetic 3238 | 501 925 456 866 458 32 . Thermal 5875 | . . 2072 3574 119 110 . Explosive 641 | . . . . . 641 . Electromagnetic 387 | . . . . . 337 50 Impact 298 | . . 214 30 54 . . Slashing . | . . . . . . . Piercing . | . . . . . . . Highest Corruption 1 | . . . 1 1 1 1 Average Corruption 1 | . . . 1 1 1 1 Corruption Purged . | . . . . . . . Corruption Blocked . | . . . . . . . Effects 17 | . . . 8 8 1 . Message Errors 5 | . . . 2 3 . . Matter Fused 4 | . . . 2 2 . . Energy Discharges 5 | . . . 3 1 1 . Parts Fused 1 | . . . 1 . . . Misfires 1 | . . . . 1 . . Alerts 1 | . . . . 1 . . Overload Shots . | . . . . . . . Overflow Damage 135 | . . 15 59 54 7 . Projectiles 59 | . . . 59 . . . Explosions 7 | . . . . . 7 . Melee 69 | . . 15 . 54 . . Knockbacks 7 | . . . 3 2 2 . Impact . | . . . . . . . Kinetic 6 | . . . 3 2 1 . Secondary 1 | . . . . . 1 . Self-Inflicted Damage 189 | . . . . 50 139 . Shots 4 | . . . . 1 3 . Rammed . | . . . . . . . Targets Rammed . | . . . . . . . Kicked . | . . . . . . . Crushed . | . . . . . . . Highest Temperature 765 | . 19 549 765 81 270 54 Average Temperature 127 | . 8 112 170 41 87 40 Received Heat Transfer 2244 | . 333 741 936 45 180 9 Effects 44 | . . 13 31 . . . Shutdowns 4 | . . 1 3 . . . Energy Bleed 8 | . . 2 6 . . . Interference 6 | . . 3 3 . . . Matter Decay 6 | . . 1 5 . . . Short Circuit 3 | . . . 3 . . . Damage (minor) 5 | . . 2 3 . . . Damage (major) 9 | . . 3 6 . . . Damage (core) 3 | . . 1 2 . . . Siege Activations . | . . . . . . . Martial Activations . | . . . . . . . Shielding Activations . | . . . . . . . Robots Disrupted . | . . . . . . . Combat Hostiles . | . . . . . . . Robots Corrupted 2 | . . 1 . 1 . . Combat Hostiles 1 | . . . . 1 . . Parts Fried 8 | . . 1 . 2 5 . Impact Corruptions 2 | . . 1 . 1 . . Robots Melted 5 | . . 3 2 . . . Combat Hostiles 3 | . . 1 2 . . . Parts Melted 25 | . . 12 13 . . . Heat Transferred 11605 | . . 4581 6652 222 150 . Parts Sabotaged . | . . . . . . . Parts Stolen . | . . . . . . . Parts Stripped . | . . . . . . . Power Chain Reactions 1 | . . . . . 1 . Alert | -11 -10 -9 -8 -8 -8 -8 ------- Run | Yrd Mat Mat Mat Gar Mat Sto Maximum Alert Level 3 | . . 2 2 3 2 . Low Security (%) 42 | 100 100 56 15 . 48 100 Level 1 32 | . . 25 68 10 45 . Level 2 22 | . . 17 16 71 5 . Level 3 2 | . . . . 17 . . Level 4 . | . . . . . . . Level 5 . | . . . . . . . High Security . | . . . . . . . Max Security . | . . . . . . . Peak Influence 937 | 10 170 535 511 937 456 98 Initial 456 | . . 19 224 278 456 94 Average 258 | 2 74 184 299 558 198 92 Influence Increases 4303 | 55 507 1163 1439 739 386 14 Destroy 0b10 Robot/C 2400 | . 320 760 840 280 200 . Destroy 0b10 Robot/NC 245 | 55 25 105 60 . . . Destroy Leader 586 | . 86 194 246 10 50 . Allied During Kill 8 | . . . . 8 . . Successful Hack 132 | . 16 32 42 28 . 14 Select Force Hacks 60 | . . 30 30 . . . Disable Machine 90 | . . 15 60 . 15 . Anti-Garrison Action 300 | . . . . 300 . . Destroy Structure 182 | . . 12 41 53 76 . Lose Combat Pursuer 300 | . 60 15 120 60 45 . Influence Decreases 4215 | 55 460 679 1541 231 1097 152 Entered New Map 1099 | . . 28 307 151 481 132 Time Decay 1976 | 55 430 581 644 . 246 20 Lost Part 330 | . 30 70 140 20 70 . Lost Ally 60 | . . . . 60 . . Purge Threat 750 | . . . 450 . 300 . Squads Dispatched 23 | . 4 5 10 . 4 . Investigation 7 | . 2 2 3 . . . Extermination . | . . . . . . . Reinforcement 13 | . 2 3 4 . 4 . Assault . | . . . . . . . Garrison 3 | . . . 3 . . . Intercept . | . . . . . . . Searches Triggered . | . . . . . . . Construction Impeded 3 | . . 1 2 . . . Haulers Reinforced . | . . . . . . . Active Scanning Responses . | . . . . . . . Cargo Convoy Interrupts . | . . . . . . . Stealth | -11 -10 -9 -8 -8 -8 -8 --------- Run | Yrd Mat Mat Mat Gar Mat Sto Distress Signals 10 | . 2 2 3 1 2 . Communications Jammed . | . . . . . . . Distress Signals . | . . . . . . . Times Spotted 163 | . 26 49 62 10 15 1 Peak Tracking Total 7 | . 4 6 7 5 6 3 Tactical Retreats 14 | . 3 1 5 2 3 . Traps | -11 -10 -9 -8 -8 -8 -8 ------- Run | Yrd Mat Mat Mat Gar Mat Sto Traps Triggered 6 | . 1 . 4 1 . . Indirectly . | . . . . . . . Trap Hack Attempts . | . . . . . . . Triggered . | . . . . . . . Disarmed . | . . . . . . . Reprogrammed . | . . . . . . . Reused . | . . . . . . . Traps Extracted . | . . . . . . . Installed . | . . . . . . . Triggered . | . . . . . . . Machines | -11 -10 -9 -8 -8 -8 -8 ---------- Run | Yrd Mat Mat Mat Gar Mat Sto Machines Disabled 13 | . . 1 4 7 1 . Max in Single Turn 2 | . . 1 1 2 1 . Garrison Relay 3 | . . . . 3 . . Phase Generator 1 | . . . . 1 . . Machines Repaired . | . . . . . . . Machines Dismantled . | . . . . . . . Machines Sabotaged . | . . . . . . . Overloaded Fab Kills . | . . . . . . . Hacking | -11 -10 -9 -8 -8 -8 -8 --------- Run | Yrd Mat Mat Mat Gar Mat Sto Machines Accessed 36 | . 4 14 12 2 3 1 Terminals 28 | . 3 10 9 2 3 1 Fabricators . | . . . . . . . Repair Stations . | . . . . . . . Recycling Units 4 | . 1 2 1 . . . Scanalyzers 3 | . . 2 1 . . . Garrison Access 1 | . . . 1 . . . Total Hacks 122 | . 10 54 42 3 11 2 Successful 70 | . 5 34 24 2 4 1 Failed 51 | . 5 19 18 1 7 1 Catastrophic 6 | . 1 3 2 . . . Database Lockouts 1 | . . 1 . . . . Manual 30 | . 3 12 7 . 6 2 Terminals 100 | . 7 41 36 3 11 2 Fabricators . | . . . . . . . Repair Stations . | . . . . . . . Recycling Units 9 | . 3 3 3 . . . Scanalyzers 12 | . . 10 2 . . . Garrison Access 1 | . . . 1 . . . Terminal Hacks 39 | . 4 18 13 2 2 . Record 1 | . . 1 . . . . Robot Analysis 5 | . 1 4 . . . . Prototype ID Bank 4 | . 2 1 1 . . . Branch Access Points 1 | . . 1 . . . . Emergency Access Points 5 | . . 2 2 1 . . Recycling Unit Index 1 | . . . 1 . . . Unreport Threat 5 | . . . 3 . 2 . Locate Traps 1 | . . . 1 . . . Dispatch Records 3 | . . 2 1 . . . Security Status 2 | . . . 2 . . . Surveillance Status 1 | . . 1 . . . . Patrol Status 1 | . . . 1 . . . Reinforcement Status 1 | . . 1 . . . . Hauler Manifests 1 | . . 1 . . . . Registered Components 3 | . 1 1 1 . . . Zone Layout 3 | . . 3 . . . . Garrison Registry 1 | . . . . 1 . . Fabricator Hacks . | . . . . . . . Repair Station Hacks . | . . . . . . . Recycling Unit Hacks 2 | . . . 2 . . . Report Inventory 1 | . . . 1 . . . Retrieve Components 1 | . . . 1 . . . Scanalyzer 10 | . . 8 2 . . . Insert Component 3 | . . 3 . . . . Analyze 4 | . . 4 . . . . Retrieve Study 3 | . . 1 2 . . . Garrison Access Hacks 1 | . . . 1 . . . Unlock Access 1 | . . . 1 . . . Unauthorized Hacks 18 | . 1 8 6 . 2 1 Terminals 13 | . 1 4 5 . 2 1 Botnet 13 | . 1 4 5 . 2 1 Fabricators . | . . . . . . . Repair Stations . | . . . . . . . Recycling Units 4 | . . 3 1 . . . Monitor 1 | . . 1 . . . . Reject 1 | . . 1 . . . . Tunnel 2 | . . 1 1 . . . Scanalyzers 1 | . . 1 . . . . Researchers 1 | . . 1 . . . . Garrison Access . | . . . . . . . Data Cores Recovered . | . . . . . . . Used . | . . . . . . . Hacking Detections 30 | . 3 11 11 1 3 1 Full Trace Events 5 | . 1 2 2 . . . Feedback Events . | . . . . . . . Feedback Blocked . | . . . . . . . Robot Schematics Acquired . | . . . . . . . Robots Built . | . . . . . . . Authchips . | . . . . . . . Time . | . . . . . . . Total Robot Build Rating . | . . . . . . . Part Schematics Acquired 3 | . . 3 . . . . Parts Built . | . . . . . . . Authchips . | . . . . . . . Time . | . . . . . . . Total Part Build Rating . | . . . . . . . Part Studies Acquired 3 | . . 1 2 . . . Parts Repaired . | . . . . . . . Time . | . . . . . . . Parts Recycled . | . . . . . . . Recycled Matter . | . . . . . . . Retrieved Matter . | . . . . . . . Retrieved Components . | . . . . . . . Parts Scanalyzed 3 | . . 3 . . . . Part Schematics Acquired 3 | . . 3 . . . . Parts Damaged . | . . . . . . . Bothacking | -11 -10 -9 -8 -8 -8 -8 ------------ Run | Yrd Mat Mat Mat Gar Mat Sto Used RIF Installer 2 | . . . . 2 . . Watcher Feeds 1 | . . . . 1 . . Robots Hacked 2 | . . . . 2 . . Non-combat . | . . . . . . . Combat 2 | . . . . 2 . . Robot Hacks Applied 2 | . . . . 2 . . reboot_system 2 | . . . . 2 . . Relay Couplers Released 12 | . . . . 12 . . Machine Destruction 12 | . . . . 12 . . Attached 1 | . . . . 1 . . Fabnet Peak Effective % . | . . . . . . . Robots Rewired 3 | . . . . 3 . . Allies Hacked 4 | . . . . 4 . . Hacks Repelled . | . . . . . . . Allies | -11 -10 -9 -8 -8 -8 -8 -------- Run | Yrd Mat Mat Mat Gar Mat Sto Total Allies 3 | . . . . 3 . . Largest Group 3 | . . . . 3 . . Highest-Rated Group 54 | . . . . 54 . . Highest-Rated Ally 18 | . . . . 18 . . Total Orders 1 | . . . . 1 . . AID 1 | . . . . 1 . . Ally Attacks 10 | . . . . 10 . . Total Damage 271 | . . . . 271 . . Kills 4 | . . . . 4 . . Allies Corrupted 1 | . . . . 1 . . Allies Melted . | . . . . . . . Intel | -11 -10 -9 -8 -8 -8 -8 ------- Run | Yrd Mat Mat Mat Gar Mat Sto Active Infowar (turns) 7358 | 43 1098 2056 2324 1327 464 46 Sensors 886 | . . 708 . . 178 . Terrain 60 | . . 60 . . . . Structural 148 | . . . 148 . . . Traps 943 | . . . 398 545 . . Seismic 1480 | 43 1098 145 194 . . . Machine Analysis 5304 | . . 1143 2324 1327 464 46 Robot Analysis Total 5 | . 1 4 . . . . Derelict Logs Recovered . | . . . . . . . Drone Launches . | . . . . . . . Drone Recoveries . | . . . . . . . Exploration | -11 -10 -9 -8 -8 -8 -8 ------------- Run | Yrd Mat Mat Mat Gar Mat Sto Turns Passed 8117 | 275 1098 2494 2338 1327 539 46 Spaces Moved 3621 | 92 473 1085 1119 607 226 19 Core 40 | 40 . . . . . . Treads 1478 | 52 241 558 627 . . . Legs 2103 | . 232 527 492 607 226 19 Wheels . | . . . . . . . Hover . | . . . . . . . Flight . | . . . . . . . Fastest Speed 50 | 50 120 120 126 125 125 192 Average Speed 165 | 166 170 175 145 172 185 192 Slowest Speed 340 | 200 190 260 270 200 340 192 Overloaded Moves . | . . . . . . . Propulsion Burnouts . | . . . . . . . Robots Hopped . | . . . . . . . Potential Cave-ins 10 | . . . . 10 . . Cave-ins Triggered . | . . . . . . . Exploration Rate (%) 47 | 3 82 89 89 48 11 11 Regions Visited 6 Branch Regions 1 Pre-discovered Areas 2 | . . 1 1 . . . Known Exits Taken 2 | . . . 1 . 1 . Unknown Exits Taken 3 | 1 1 1 . . . . Scrap Searched . | . . . . . . . Spaces Dug 48 | . . 7 8 25 8 . Terrain Destroyed 208 | . . 7 36 90 75 . Melee 36 | . . 7 8 21 . . Projectile 46 | . . . 28 5 13 . AOE 126 | . . . . 64 62 . Terrain Rammed . | . . . . . . . Walls Destroyed . | . . . . . . . Machines Disabled . | . . . . . . . Actions | -11 -10 -9 -8 -8 -8 -8 --------- Run | Yrd Mat Mat Mat Gar Mat Sto Total 4801 | 147 614 1417 1517 774 305 27 Wait 295 | . 24 85 124 37 19 6 Move 3615 | 91 472 1084 1118 606 225 19 Hop . | . . . . . . . Pick Up 81 | 9 7 24 24 10 7 . Fast Attach 51 | 5 1 18 18 2 7 . Attach 31 | 2 1 8 15 3 2 . Detach 3 | . . 2 1 . . . Swap 57 | . 2 16 17 15 6 1 Drop 86 | . 6 33 27 13 7 . Fire 514 | 40 101 135 163 42 32 1 Melee 62 | . . 12 10 40 . . Ram . | . . . . . . . Kick . | . . . . . . . Crush . | . . . . . . . Escape Stasis 5 | . . . . 5 . . Rewire 1 | . . . . 1 . . Trap . | . . . . . . . Miscellaneous . | . . . . . . . Route ------- -11/Scrapyard -10/Materials (discovered 4 exits: *Mat x2 / [*Min x2]) -9/Materials (discovered 4 exits: *Mat x2 / *Min x2) -8/Materials (discovered 5 exits: [*Fac x2] / *Sto x2 / Gar) -8/Garrison (discovered 3 exits: *Mat x3) -8/Materials -8/Storage History --------- Turn | Location | Event 36 | -11/Scrapyard | Discovered new exit (range 14) 276 | -11/Scrapyard | Entered Materials 315 | -10/Materials | Build established: Mutant 640 | -10/Materials | Discovered new exit (range 15) 851 | -10/Materials | Discovered new exit (range 10) 872 | -10/Materials | Core integrity fell below 50% 907 | -10/Materials | Discovered new exit (range 15) 1125 | -10/Materials | Discovered new exit (range 6) 1374 | -10/Materials | Entered another Materials area 1374 | -9/Materials | Evolved 2 slots: Propulsion x1, Utility x1 1384 | -9/Materials | Identified exit to Mines 1558 | -9/Materials | Lost 3 parts (1n1u1w) 1707 | -9/Materials | Discovered new exit (range 11) 1817 | -9/Materials | Build established: Scavenger-Mutant 2803 | -9/Materials | Core integrity fell below 50% 2880 | -9/Materials | Discovered new exit (range 11) 2911 | -9/Materials | Central database locked down 3768 | -9/Materials | Core integrity fell below 20% 3868 | -9/Materials | Entered another Materials area 3868 | -8/Materials | Evolved 2 slots: Propulsion x1, Utility x1 4047 | -8/Materials | Destroyed 7 combat bots 4471 | -8/Materials | Discovered new exit (range 5) 4532 | -8/Materials | Discovered new exit (range 16) 4674 | -8/Materials | Discovered new exit (range 13) 4894 | -8/Materials | Core integrity fell below 50% 4933 | -8/Materials | Lost 3 parts (2n1w) 5272 | -8/Materials | Garrison activated, responded to threat 5413 | -8/Materials | Identified exit to Garrison 5585 | -8/Materials | Discovered new exit (range 16) 6056 | -8/Materials | Build established: Mutant 6206 | -8/Materials | Entered Garrison 6220 | -8/Garrison | Triggered checkpoint 6261 | -8/Garrison | Garrison Relay disabled 6262 | -8/Garrison | Triggered checkpoint 6300 | -8/Garrison | Discovered new exit (range 53) 6300 | -8/Garrison | Discovered new exit (range 79) 6300 | -8/Garrison | Discovered new exit (range 76) 6351 | -8/Garrison | Garrison Relay disabled 6535 | -8/Garrison | Installed Relay Interface Framework 6878 | -8/Garrison | Triggered checkpoint 6911 | -8/Garrison | Garrison Relay disabled 7155 | -8/Garrison | Expanded RIF knowledge: Watcher Feeds 7431 | -8/Garrison | Identified exit to Materials 7516 | -8/Garrison | Phase Generator disabled 7533 | -8/Garrison | Entered Materials 7726 | -8/Materials | Core integrity fell below 20% 7928 | -8/Materials | Discovered new exit (range 10) 8030 | -8/Materials | Lost 3 parts (2n1w) 8070 | -8/Materials | Identified exit to Storage 8072 | -8/Materials | Entered Storage 8118 | -8/Storage | Destroyed by Y-45 Defender with Beam Rifle Last Messages --------------- 08049_ Acquired 7 matter. 08053_ U-05 Engineer lays Concrete. 08060_ K-01 Serf collects debris. 08061_ U-05 Engineer lays Concrete. 08063_ K-01 Serf collects debris. 08065_ The unstable cave ceiling collapses. 08065_ U-05 Engineer builds a Wall. 08067_ K-01 Serf collects debris. 08069_ U-05 Engineer builds a Wall. 08070_ EXIT=IDENTIFIED: STORAGE 08072_ >> Machine Analyzer network decryption results: 08072_ Terminal x1 LOCATION=STORAGE GOAL=ESCAPE 08099_ Connecting with Terminal... >>Trojan(Botnet) Trojan loaded successfully. Testing... Terminal linked with 0 systems. Awaiting botnet instructions. Map ----- +----------------------------------------------------+ | ?????????????????????????????????????????????????? | | ?????????????????????????????????????????????????? | | ?????????????????????????????????????????????????? | | ?????????????????????????????????????????????????? | | ?????????????????????????????????????????????????? | | ?????????????????????????????????????????????????? | | ?????????????????????????????????????????????????? | | ?????????????????????????????????????????????????? | | ???????????????????????????????????????????"T"???? | | ?????????????????????????????????????????????????? | | ?????????????????????????????????????????????????? | | ?????????????????????????????????????????????????? | | ?????????????????????????????????????????????????? | | ?????????????????????????????????????????????????? | | ?????????????????????????????????????????????????? | | ???????????????????? ########????+##?????????????? | | ???????????????????? * ??? ????????????? | | ???????????????????# # """ """ #?????????? | | ???????????????????# # """ """ #?????????? | | ???????????????????# # """ """ #?????????? | | ???????????????????# # """ """ #?????????? | | ???????????????????# """ """ # """ """ #?????????? | | ???????????????????? """ """ # #?????????? | | ?????????????????????""" """?# #?????????? | | ?????????????###########Y#########+######????????? | | ?????????# r @ #????????? | | ?????????# ^ #????????? | | ?????????# #????????? | | ??????????##############""T""############????????? | | ???????????????????????#"""""#???????????????????? | | ???????????????????????#######???????????????????? | | ?????????????????????????????????????????????????? | | | | | | | | | | | | | | | | | | | | | | | | | | | | | | | | | | | | | +----------------------------------------------------+ Best States ------------- Heat Dissipation 59 Energy Generation 16 Energy Capacity 290 Matter Stores 300 Matter Capacity 300 Sight Range 16 Robot Scan Range 15 Terrain Scan Range 16 Terrain Scan Density 10 Armor Coverage 225 Evasion (%) 55 Recoil Reduction 4 Particle Charging 15 Relay Coupler Types 1 Relay Coupler Value 13 Item Schematics ----------------- Lgt. Treads | -9/Materials | Scanalyzed Seismic Detector | -9/Materials | Scanalyzed Mni. Grenade Launcher | -9/Materials | Scanalyzed Robot Schematics ------------------ None Fabricated ------------ Nothing Repaired ---------- Nothing Studied --------- Lgt. Treads | -9/Materials | Hacked Mni. Grenade Launcher | -8/Materials | Hacked Hvy. Hammer | -8/Materials | Hacked Alien Tech Used ----------------- None Achievements -------------- Factory Defaults Challenges ------------ None Game ------ Seed SystemSlugDiverter Manual? 0 Play Time 01:34:34 Cumulative 133.3 hours Start 2026.09.01 @ 18:42:58 End 2026.09.01 @ 22:42:54 Sessions 1 Manual Loads 0 Difficulty Rogue Special Mode None Game No. 113 Rogue 111 Adventurer 2 Explorer 0 Win Type - Total 0 Types 0/0/0/0/0/0/0/0/0/0 Lore% 59 Gallery% 50 Achievement% 41 Wizard Run 0 Options --------- Layout 0 ASCII 0 Keyboard 0 Movement Mouse Keybinds 0 Fullscreen 2 Font 24/Smallcaps Map View 76x50 Zoom Use 0% Tactical HUD 1 Map Filters NONE Filters NONE Steam 1 RUN: a08b880b-3fbb-4d97-9312-864e3834b386